bitfinex/quotes_ETHUSD_20251107
["timestamp","ask_amount","ask_price","bid_price","bid_amount"]
[1762551109283,0.002,3466.9,3466.7,12.98297864]
[1762551109484,0.002,3466.9,3466.7,0.3066]
[1762551110985,2.88450444,3466.8,3466.7,0.3066]
[1762551111285,3.37956478,3467.1,3466.7,0.3066]
[1762551111470,2.88433804,3467.0,3466.7,0.3066]
[1762551111677,0.002,3467.3,3466.5,0.0588]
[1762551111678,0.49,3466.8,3466.5,0.0588]
[1762551111861,0.49,3466.8,3466.2,0.0588]
[1762551112062,2.88486823,3466.4,3466.2,0.0588]
[1762551112267,2.88460492,3466.7,3466.2,0.0588]
[1762551112465,2.88480815,3466.5,3466.3,0.3066]
[1762551112969,2.88459095,3466.7,3466.4,0.3066]
[1762551113188,2.88450444,3466.8,3466.4,0.3066]
[1762551113488,0.1869,3466.9,3466.4,0.3066]
[1762551113673,2.88439695,3467.0,3466.8,0.3066]
[1762551113876,2.88434606,3467.0,3466.8,0.3066]
[1762551114488,2.88434606,3467.0,3466.9,0.4506]
[1762551114657,2.88417166,3467.2,3466.9,0.4506]
[1762551114858,0.002,3467.3,3467.1,0.3066]
[1762551115171,2.88417166,3467.2,3466.9,0.4506]
[1762551115365,2.8842814,3467.1,3466.9,0.144]
[1762551115571,2.88433804,3467.0,3466.9,0.144]
[1762551115975,2.88433804,3467.0,3466.9,0.4506]
[1762551116171,2.88417947,3467.2,3466.9,0.4506]
[1762551116497,2.88430573,3467.1,3466.9,0.144]
[1762551116701,2.8842659,3467.1,3466.5,2.88472661]
[1762551116999,2.8842659,3467.1,3467.0,0.144]
[1762551119268,0.002,3467.3,3467.0,0.144]
[1762551119468,2.88425485,3467.1,3467.0,0.144]
[1762551120294,0.002,3467.3,3467.0,0.4506]
[1762551120664,2.88425485,3467.1,3467.0,0.4506]
[1762551120867,0.002,3467.3,3467.2,0.3066]
[1762551121065,0.002,3467.3,3467.2,0.4506]
[1762551121967,0.002,3467.3,3467.2,0.144]
[1762551122167,3.36928848,3467.3,3467.2,0.144]
[1762551122368,3.83878848,3467.3,3467.2,0.144]
[1762551122569,2.88608848,3467.3,3467.2,0.144]
[1762551124520,0.002,3467.3,3467.2,0.144]
[1762551124814,0.002,3467.3,3467.2,0.4506]
[1762551125016,0.002,3467.3,3467.2,3.64137166]
[1762551125217,0.002,3467.3,3467.2,11.103139]
[1762551125516,0.002,3467.3,3467.2,9.121339]
[1762551126216,0.002,3467.3,3467.2,0.7572]
[1762551127224,0.002,3467.3,3467.2,0.4506]
[1762551127519,3.36928848,3467.3,3467.2,0.144]
[1762551128784,4.51166268,3467.3,3467.2,0.144]
[1762551129123,2.88425485,3467.1,3467.0,3.79]
[1762551129326,3.83695485,3467.1,3467.0,3.934]
[1762551129686,3.83695485,3467.1,3467.0,0.144]
[1762551130736,2.88458764,3466.7,3466.6,0.001]
[1762551130882,3.99219612,3466.7,3466.6,0.001]
[1762551131087,4.46169612,3466.7,3466.6,0.001]
[1762551132395,3.88478764,3466.7,3466.6,0.001]
[1762551132595,0.144,3467.1,3466.6,0.3076]
[1762551132826,2.88453482,3466.8,3466.6,0.001]
[1762551133029,0.4695,3467.1,3466.7,0.144]
[1762551133230,2.88435832,3467.0,3466.7,0.144]
[1762551133593,2.88426141,3467.1,3466.7,0.144]
[1762551133939,0.146,3467.3,3467.0,0.3066]
[1762551133940,0.002,3467.3,3467.0,0.3066]
[1762551134091,0.002,3467.3,3467.0,0.33544338]
[1762551134293,0.002,3467.3,3467.2,0.144]
[1762551134491,0.002,3467.3,3467.2,0.3066]
[1762551134726,0.002,3467.3,3467.2,0.7572]
[1762551136396,0.002,3467.3,3467.2,0.4506]
[1762551137945,0.002,3467.3,3467.2,11.73070266]
[1762551138100,0.002,3467.3,3467.2,15.02829766]
[1762551139010,0.002,3467.3,3467.2,9.875997]
[1762551139549,0.002,3467.3,3467.2,14.01988066]
[1762551140144,0.002,3467.3,3467.2,19.65455366]
[1762551140307,0.002,3467.3,3467.2,19.55558966]
[1762551140510,0.002,3467.3,3467.2,18.55558966]
[1762551140752,0.002,3467.3,3467.2,17.63657966]
[1762551140950,0.002,3467.3,3467.2,4.90108366]
[1762551141308,0.002,3467.4,3467.3,4.19380048]
[1762551141507,0.002,3467.4,3467.3,42.14980455]
[1762551141927,0.002,3467.4,3467.3,12.14980455]
[1762551142112,0.002,3467.4,3467.3,37.05684755]
[1762551142307,0.002,3467.4,3467.3,32.86384755]
[1762551143011,0.002,3467.4,3467.3,37.68952455]
[1762551143208,0.002,3467.7,3467.3,37.68952455]
[1762551143209,0.002,3468.4,3467.7,0.05]
[1762551143535,0.002,3468.4,3467.7,5.38729146]
[1762551143840,0.002,3468.4,3467.7,35.69389146]
[1762551144004,0.002,3468.4,3467.7,35.14822746]
[1762551144345,0.002,3468.4,3467.7,34.49525346]
[1762551144638,0.002,3468.4,3467.7,13.84997717]
[1762551144840,0.002,3468.4,3467.7,13.9677048]
[1762551145037,0.002,3468.4,3467.7,31.4731068]
[1762551145211,0.002,3468.4,3467.7,25.7404538]
[1762551145414,0.002,3468.4,3467.7,10.4896118]
[1762551145840,0.002,3468.4,3467.7,10.7962118]
[1762551146151,0.002,3468.4,3467.7,32.5857618]
[1762551146351,0.002,3468.4,3467.7,33.0955628]
[1762551147229,0.002,3468.4,3467.7,36.3646678]
[1762551147818,0.002,3468.4,3467.9,2.88358949]
[1762551148123,0.002,3468.4,3467.9,41.08052356]
[1762551148319,0.002,3468.4,3467.9,41.84107456]
[1762551148873,0.002,3468.4,3467.9,38.00727956]
[1762551149159,0.002,3468.4,3467.9,24.59068807]
[1762551149770,0.002,3468.4,3467.9,24.18518407]
[1762551149926,0.002,3468.4,3467.9,21.2624199]
[1762551150259,0.002,3468.4,3467.9,25.1222869]
[1762551150556,0.002,3468.4,3467.9,8.34120749]
[1762551151128,0.002,3468.4,3467.9,5.507618]
[1762551151329,0.002,3468.4,3467.9,15.735523]
[1762551151543,0.4852,3468.0,3467.9,1.751]
[1762551151763,0.9547,3468.0,3467.9,0.144]
[1762551151916,3.83820634,3468.0,3467.9,0.144]
[1762551154952,4.17770799,3468.0,3467.9,0.144]
[1762551155254,2.88414164,3467.3,3467.1,0.001]
[1762551155554,3.42647166,3467.2,3467.1,0.001]
[1762551155729,3.91277166,3467.2,3467.1,0.001]
[1762551156071,3.91277166,3467.2,3467.1,0.145]
[1762551159248,2.88600592,3467.4,3467.1,0.145]
[1762551159446,0.4833,3467.2,3467.1,0.145]
[1762551159697,3.36747166,3467.2,3467.1,0.001]
[1762551159992,3.85377166,3467.2,3467.1,0.145]
[1762551163254,3.85377166,3467.2,3467.1,0.001]
[1762551165900,4.43217837,3467.2,3467.1,0.001]
[1762551166107,2.88450444,3466.8,3466.7,0.001]
[1762551166303,3.54740715,3466.8,3466.7,0.001]
[1762551166597,4.01710715,3466.8,3466.7,0.001]
[1762551166998,3.98820444,3466.8,3466.7,0.001]
[1762551167171,4.01710715,3466.8,3466.7,0.001]
[1762551167495,5.01450488,3466.8,3466.7,0.001]
[1762551169221,3.98820444,3466.8,3466.7,0.001]
[1762551171129,3.98820444,3466.8,3466.3,0.001]
[1762551171130,2.88483729,3466.4,3466.3,0.001]
[1762551171329,2.88541009,3465.8,3465.3,0.29464017]
[1762551171543,3.37566976,3465.4,3465.3,0.29464017]
[1762551172035,3.84536976,3465.4,3465.3,0.15064017]
[1762551173392,3.37566976,3465.4,3465.3,0.15064017]
[1762551174020,2.88561088,3465.5,3465.3,0.15064017]
[1762551174221,2.88534295,3465.8,3465.3,0.15064017]
[1762551174387,2.88485215,3466.4,3465.4,0.4526]
[1762551174388,0.4697,3466.1,3465.4,0.4526]
[1762551174794,2.88534016,3465.8,3465.7,0.144]
[1762551175499,2.88523463,3466.0,3465.7,0.4526]
[1762551175695,2.88523463,3466.0,3465.9,0.3086]
[1762551176026,2.88523463,3466.0,3465.9,0.4526]
[1762551176402,3.37523463,3466.0,3465.9,0.144]
[1762551176806,3.84493463,3466.0,3465.9,0.144]
[1762551177119,3.84272139,3466.0,3465.9,0.144]
[1762551177692,4.19461032,3466.0,3465.9,0.144]
[1762551179192,3.84272139,3466.0,3465.9,0.144]
[1762551180439,2.88302139,3466.0,3465.9,0.144]
[1762551180825,0.002,3466.2,3465.9,0.4526]
[1762551181006,2.88508698,3466.1,3466.0,0.144]
[1762551181208,0.002,3466.2,3466.0,0.144]
[1762551181209,2.88700375,3466.2,3466.0,0.144]
[1762551181408,2.88508698,3466.1,3466.0,0.144]
[1762551182798,3.36998698,3466.1,3466.0,0.144]
[1762551183243,3.84198698,3466.1,3466.0,0.144]
[1762551184040,4.51776914,3466.1,3466.0,0.144]
[1762551184271,2.88544543,3465.7,3465.5,5.049712]
[1762551184493,2.88525346,3465.9,3465.7,0.144]
[1762551184770,2.88533671,3465.8,3465.7,0.144]
[1762551184980,3.84223671,3465.8,3465.7,0.144]
[1762551185472,3.37023671,3465.8,3465.7,0.144]
[1762551185641,3.39913942,3465.8,3465.7,0.144]
[1762551185842,3.87113942,3465.8,3465.7,0.144]
[1762551186183,3.84223671,3465.8,3465.7,0.144]
[1762551186474,3.37023671,3465.8,3465.7,0.144]
[1762551187888,2.88533671,3465.8,3465.7,0.144]
[1762551188076,2.88533671,3465.8,3465.7,0.4526]
[1762551188394,0.002,3466.2,3465.7,0.7612]
[1762551188598,0.002,3466.2,3465.9,0.3086]
[1762551188914,2.88530278,3465.9,3465.7,0.144]
[1762551189114,2.88515246,3466.1,3465.7,0.144]
[1762551189264,2.88517932,3466.0,3465.8,0.3086]
[1762551189604,0.002,3466.2,3466.0,0.144]
[1762551189771,0.002,3466.2,3466.1,0.3674]
[1762551189984,2.88700375,3466.2,3466.1,0.3674]
[1762551190212,2.88508698,3466.1,3465.2,0.1024]
[1762551190500,2.88508698,3466.1,3465.1,0.001]
[1762551190501,2.88566976,3465.4,3465.1,0.1034]
[1762551191063,3.84256976,3465.4,3465.1,0.001]
[1762551191383,0.472,3465.8,3465.3,0.45924017]
[1762551192185,2.88566976,3465.4,3465.3,0.15064017]
[1762551193299,3.84256976,3465.4,3465.3,0.15064017]
[1762551193500,3.37056976,3465.4,3465.3,0.15064017]
[1762551196576,2.88566976,3465.4,3465.3,0.15064017]
[1762551196875,3.37056976,3465.4,3465.3,0.15064017]
[1762551197700,2.88566976,3465.4,3465.3,0.15064017]
[1762551198200,3.37056976,3465.4,3465.3,0.15064017]
[1762551198601,2.88566976,3465.4,3465.3,0.15064017]
[1762551198912,2.88565114,3465.5,3465.3,0.45924017]
[1762551199414,2.88557948,3465.6,3465.4,0.3086]
[1762551199579,3.35708698,3466.1,3465.4,0.3086]
[1762551199781,2.88558649,3465.5,3465.4,0.3086]
[1762551200399,2.88558649,3465.5,3465.4,0.4526]
[1762551201486,3.84248649,3465.5,3465.4,0.144]
[1762551201742,2.88566976,3465.4,3465.3,0.15064017]
[1762551201898,3.84256976,3465.4,3465.3,0.15064017]
[1762551202330,3.87147247,3465.4,3465.3,0.15064017]
[1762551202541,4.01547247,3465.4,3465.3,0.15064017]
[1762551202913,4.39207376,3465.4,3465.3,1e-08]
[1762551203243,5.33195314,3465.4,3465.3,1e-08]
[1762551203844,5.36085585,3465.4,3465.3,1e-08]
[1762551204525,5.33195314,3465.4,3465.3,1e-08]
[1762551206341,4.92644914,3465.4,3465.3,1e-08]
[1762551207829,2.88566976,3465.4,3465.3,1e-08]
[1762551208360,3.37056976,3465.4,3465.3,1e-08]
[1762551208656,3.84256976,3465.4,3465.3,1e-08]
[1762551211830,2.88566976,3465.4,3465.3,1e-08]
[1762551212060,2.88566976,3465.4,3465.3,0.30860001]
[1762551212429,2.88552572,3465.6,3465.3,0.61720001]
[1762551212627,3.38496976,3465.4,3465.3,1e-08]
[1762551213153,3.85616976,3465.4,3465.3,1e-08]
[1762551222642,3.38496976,3465.4,3465.3,1e-08]
[1762551223175,3.83616976,3465.4,3465.3,1e-08]
[1762551223380,4.50833931,3465.4,3465.3,1e-08]
[1762551223964,4.53724202,3465.4,3465.3,1e-08]
[1762551224170,4.50833931,3465.4,3465.3,1e-08]
[1762551227861,4.53724202,3465.4,3465.3,1e-08]
[1762551228262,4.94274602,3465.4,3465.3,1e-08]
[1762551229801,4.94274602,3465.4,3465.3,0.00100001]
[1762551230294,4.46264331,3465.4,3465.3,0.00100001]
[1762551230499,4.91384331,3465.4,3465.3,0.00100001]
[1762551230661,4.50833931,3465.4,3465.3,0.00100001]
[1762551231922,4.53724202,3465.4,3465.3,0.00100001]
[1762551233220,4.94274602,3465.4,3465.3,0.00100001]
[1762551234985,6.20245802,3465.4,3465.3,0.00100001]
[1762551235210,6.17355531,3465.4,3465.3,0.00100001]
[1762551238408,6.2891023,3465.4,3465.3,0.00100001]
[1762551240239,6.17355531,3465.4,3465.3,0.00100001]
[1762551241221,3.77960688,3465.0,3464.9,1e-08]
[1762551241532,4.48946181,3465.0,3464.9,1e-08]
[1762551241728,4.94066181,3465.0,3464.9,1e-08]
[1762551243853,6.20037381,3465.0,3464.9,1e-08]
[1762551244053,6.1714711,3465.0,3464.9,1e-08]
[1762551244948,9.2114711,3465.0,3464.9,1e-08]
[1762551245548,9.68719693,3465.0,3464.9,1e-08]
[1762551245937,9.2114711,3465.0,3464.9,1e-08]
[1762551246317,6.1714711,3465.0,3464.9,1e-08]
[1762551250428,5.09600203,3464.3,3464.2,1e-08]
[1762551250630,5.12490474,3464.3,3464.2,1e-08]
[1762551250871,5.61980474,3464.3,3464.2,1e-08]
[1762551251030,6.07918036,3464.3,3464.2,1e-08]
[1762551251367,6.05027765,3464.3,3464.2,1e-08]
[1762551251665,6.94395489,3464.3,3464.2,1e-08]
[1762551252782,4.64514289,3464.3,3464.2,0.30860001]
[1762551252941,4.18576727,3464.3,3464.2,0.45600001]
[1762551253269,3.29209003,3464.3,3464.2,0.45600001]
[1762551253652,3.29209003,3464.3,3464.2,0.30860001]
[1762551255092,6.33209003,3464.3,3464.2,0.30860001]
[1762551255278,3.29209003,3464.3,3464.2,0.30860001]
[1762551255680,3.29209003,3464.3,3464.2,1e-08]
[1762551256365,4.08185876,3464.3,3464.2,1e-08]
[1762551256564,4.08185876,3464.3,3464.2,0.30860001]
[1762551256973,4.08185876,3464.3,3464.2,1e-08]
[1762551257296,2.88658603,3464.3,3464.2,0.30860001]
[1762551257580,2.88658603,3464.3,3464.2,0.61720001]
[1762551259083,2.88675269,3464.1,3463.1,3.79100001]
[1762551259398,2.88750288,3463.2,3463.1,0.00100001]
[1762551260357,2.88750288,3463.2,3463.1,0.14500001]
[1762551265197,2.88723425,3463.6,3463.1,0.14500001]
[1762551265502,0.144,3463.7,3463.1,0.14500001]
[1762551265703,2.88750288,3463.2,3463.1,0.14500001]
[1762551266471,2.88750288,3463.2,3463.1,0.00100001]
[1762551266670,3.48227727,3463.2,3463.1,0.00100001]
[1762551267802,3.51117998,3463.2,3463.1,0.00100001]
[1762551268000,3.96987998,3463.2,3463.1,0.00100001]
[1762551268981,3.94097727,3463.2,3463.1,0.00100001]
[1762551269770,3.48227727,3463.2,3463.1,0.00100001]
[1762551271115,3.94097727,3463.2,3463.1,0.00100001]
[1762551271836,0.6919,3464.5,3463.1,0.00100001]
[1762551271971,2.88613466,3464.9,3463.2,7.23378]
[1762551271972,3.08313466,3464.9,3463.2,7.23378]
[1762551272170,3.08313466,3464.9,3463.3,2.887408]
[1762551272371,2.88688858,3464.0,3463.2,2.88747431]
[1762551272816,1.61771547,3464.8,3463.1,0.43845743]
[1762551272973,2.88633608,3464.6,3463.2,7.012464]
[1762551273177,2.88730097,3463.5,3463.1,0.00100001]
[1762551273599,0.64591621,3464.7,3463.1,0.00100001]
[1762551273600,0.02890271,3464.0,3463.1,0.00100001]
[1762551273814,2.88715936,3463.7,3463.1,0.00100001]
[1762551274001,2.88718458,3463.6,3463.1,1.26071201]
[1762551274197,0.02890271,3464.1,3463.1,0.00100001]
[1762551274398,2.88738756,3463.4,3463.1,0.00100001]
[1762551275117,2.88683602,3464.0,3463.1,0.00100001]
[1762551275118,2.88750288,3463.2,3463.1,0.00100001]
[1762551275496,2.8873948,3463.4,3463.1,0.00100001]
[1762551276004,2.88743484,3463.3,3463.1,0.00100001]
[1762551276806,2.88713173,3463.7,3463.1,0.00100001]
[1762551277034,2.88717336,3463.6,3463.1,0.00100001]
[1762551277234,2.88723832,3463.6,3463.1,0.00100001]
[1762551278013,2.88725984,3463.5,3463.1,0.00100001]
[1762551278642,2.88679072,3464.1,3463.1,0.00100001]
[1762551279340,2.88724503,3463.6,3463.1,0.00100001]
[1762551280044,2.88727045,3463.5,3463.1,0.00100001]
[1762551281043,2.88720262,3463.6,3463.1,0.00100001]
[1762551281742,2.88706643,3463.8,3463.1,0.02987587]
[1762551281957,2.88698822,3463.9,3463.5,0.144]
[1762551282250,2.88702353,3463.8,3463.7,0.144]
[1762551282924,2.88683602,3464.0,3463.7,0.144]
[1762551283144,2.8886988,3464.2,3463.7,0.144]
[1762551283310,2.8886988,3464.2,3464.0,0.144]
[1762551283709,0.002,3464.2,3464.0,0.144]
[1762551284133,0.002,3464.2,3464.1,0.144]
[1762551286329,2.88866936,3464.2,3464.1,0.144]
[1762551286710,0.002,3464.2,3464.1,0.144]
[1762551287140,0.002,3464.2,3463.7,0.05]
[1762551287452,0.002,3464.2,3463.8,6.66203996]
[1762551287637,0.002,3464.2,3463.8,2.88699896]
[1762551288156,0.002,3464.2,3463.7,2.93705513]
[1762551288339,0.002,3464.2,3463.8,9.646572]
[1762551289438,0.002,3464.2,3463.8,12.53356746]
[1762551289638,0.002,3464.2,3463.9,10.255328]
[1762551290148,0.002,3464.2,3464.0,1.28858036]
[1762551290345,0.002,3464.2,3464.1,2.924686]
[1762551291239,0.002,3464.2,3464.1,3.198481]
[1762551291447,0.002,3464.2,3464.1,8.08523369]
[1762551291616,0.002,3464.2,3464.1,2.88675269]
[1762551291818,0.002,3464.2,3464.1,17.37467469]
[1762551292021,0.002,3464.2,3464.1,18.91868869]
[1762551292741,0.002,3464.2,3464.1,18.96868869]
[1762551293350,0.002,3464.2,3464.1,21.10039969]
[1762551293548,0.002,3464.2,3464.1,19.79539969]
[1762551293922,0.002,3464.2,3464.1,21.10039969]
[1762551294259,0.002,3464.2,3464.1,18.83281369]
[1762551294454,0.002,3464.2,3464.1,23.78771742]
[1762551294858,0.002,3464.2,3464.1,24.07639842]
[1762551295357,0.002,3464.2,3464.1,24.36949842]
[1762551295678,0.002,3464.2,3464.1,33.82205342]
[1762551296157,0.002,3464.2,3464.1,34.42390742]
[1762551296369,0.002,3464.2,3464.1,34.58296435]
[1762551296574,0.002,3464.2,3464.1,39.31558842]
[1762551296739,0.002,3464.6,3464.5,2.93641939]
[1762551296930,0.002,3464.6,3464.5,9.31525512]
[1762551297126,0.002,3464.6,3464.5,9.45925512]
[1762551297322,0.002,3464.6,3464.5,26.76495012]
[1762551297546,0.002,3464.6,3464.5,27.11510612]
[1762551298056,0.002,3464.9,3464.8,2.88616947]
[1762551298259,0.002,3464.9,3464.8,9.2650052]
[1762551298464,0.002,3464.9,3464.8,38.1231192]
[1762551298654,0.002,3464.9,3464.8,38.1234102]
[1762551299746,0.002,3464.9,3464.8,32.2129262]
[1762551300156,0.002,3464.9,3464.8,29.9960762]
[1762551300380,0.002,3464.9,3464.8,16.1364822]
[1762551300787,0.002,3464.9,3464.8,14.8491982]
[1762551301697,0.002,3464.9,3464.8,33.4393422]
[1762551301860,0.002,3465.0,3464.9,4.19579817]
[1762551302061,0.002,3465.7,3465.3,4.19546503]
[1762551302285,0.002,3466.1,3465.3,4.19546503]
[1762551302286,0.002,3466.1,3465.8,3.29076596]
[1762551302580,0.002,3466.1,3466.0,9.26400595]
[1762551302885,0.002,3466.1,3466.0,12.70151295]
[1762551303485,0.002,3466.1,3466.0,11.93942495]
[1762551303660,0.002,3466.1,3466.0,18.61619095]
[1762551303988,0.002,3466.1,3466.0,18.19800195]
[1762551304352,0.002,3466.1,3466.0,11.58866222]
[1762551304756,0.002,3466.6,3466.3,2.88492052]
[1762551304757,1e-08,3466.4,3466.3,2.88492052]
[1762551305073,0.002,3468.2,3466.3,2.88492052]
[1762551305074,0.4619,3468.7,3468.5,0.1346343]
[1762551305278,0.1154068,3469.3,3468.5,0.1346343]
[1762551305279,0.6722,3468.6,3468.5,0.1346343]
[1762551305590,0.4619,3468.9,3468.5,0.1346343]
[1762551305591,3.34467758,3468.9,3468.6,0.144]
[1762551305883,2.88300755,3468.6,3468.5,0.1346343]
[1762551306190,2.88300755,3468.6,3467.1,1.559]
[1762551306191,2.88385067,3467.6,3467.1,1.559]
[1762551306573,0.481,3467.2,3466.8,0.1346]
[1762551307988,0.1912,3467.7,3467.1,0.2692]
[1762551308198,2.88387236,3467.6,3467.2,0.2692]
[1762551308991,2.88401446,3467.4,3467.2,0.2692]
[1762551309162,2.88383896,3467.6,3466.8,1.394312]
[1762551309365,2.8840266,3467.4,3467.0,1.259712]
[1762551309563,2.88383896,3467.6,3466.9,1.259712]
[1762551309772,2.8840202,3467.4,3467.1,1.259712]
[1762551309978,2.8840202,3467.4,3466.8,1.394312]
[1762551310178,2.88400865,3467.4,3467.0,1.259712]
[1762551310351,2.88409065,3467.3,3466.8,0.1346]
[1762551310551,2.88392725,3467.5,3467.0,1.259712]
[1762551310782,0.78849628,3467.8,3466.9,1.259712]
[1762551310988,2.88392485,3467.5,3467.1,1.259712]
[1762551311183,2.88392485,3467.5,3467.0,1.259712]
[1762551311387,2.88392485,3467.5,3466.9,2.88442075]
[1762551311567,0.4619,3467.8,3467.1,1.259712]
[1762551311766,2.88406281,3467.4,3466.8,0.4038]
[1762551311963,2.88406281,3467.4,3467.0,1.259712]
[1762551312167,2.88394235,3467.5,3466.9,1.259712]
[1762551312385,2.88401072,3467.4,3467.1,1.259712]
[1762551312558,2.88401072,3467.4,3467.0,1.259712]
[1762551312887,2.88409371,3467.3,3466.8,1.663512]
[1762551313194,2.88409371,3467.3,3467.0,1.259712]
[1762551313392,3.345679,3467.7,3466.8,0.4038]
[1762551313575,2.88400975,3467.4,3467.1,1.259712]
[1762551313780,2.88400975,3467.4,3466.9,1.259712]
[1762551314084,2.88400975,3467.4,3467.1,1.259712]
[1762551314288,2.88400975,3467.4,3467.0,1.259712]
[1762551314511,2.88373864,3467.8,3467.3,0.2692]
[1762551314714,2.88379739,3467.7,3467.3,0.2692]
[1762551314915,2.88374888,3467.8,3467.3,0.2692]
[1762551315296,2.88375688,3467.7,3467.3,0.2692]
[1762551315820,2.88375688,3467.7,3467.6,0.144]
[1762551316519,3.36475688,3467.7,3467.6,0.144]
[1762551316881,3.3647558,3467.7,3467.6,0.144]
[1762551317921,4.53592239,3467.7,3467.6,0.144]
[1762551319040,1.65216659,3467.7,3467.2,0.144]
[1762551319337,2.88408848,3467.3,3467.2,0.144]
[1762551319490,3.36508848,3467.3,3467.2,0.144]
[1762551319691,3.82698848,3467.3,3467.2,0.144]
[1762551321724,3.2839967,3467.3,3467.2,0.144]
[1762551321913,0.9429,3467.3,3466.8,0.001]
[1762551322124,0.4619,3467.2,3466.8,0.001]
[1762551322334,0.4619,3467.2,3467.0,0.144]
[1762551322740,3.36525485,3467.1,3467.0,0.144]
[1762551323130,3.82715485,3467.1,3467.0,0.144]
[1762551330051,2.88435761,3467.0,3466.8,0.001]
[1762551330243,0.481,3466.9,3466.8,0.145]
[1762551330447,3.36542124,3466.9,3466.8,0.145]
[1762551330932,3.55662124,3466.9,3466.8,0.145]
[1762551331137,4.01852124,3466.9,3466.8,0.145]
[1762551332049,4.01852124,3466.9,3466.8,0.001]
[1762551334060,4.72320093,3466.9,3466.8,0.001]
[1762551337144,4.01852124,3466.9,3466.8,0.001]
[1762551340078,3.55662124,3466.9,3466.8,0.001]
[1762551340372,4.04582124,3466.9,3466.8,0.001]
[1762551342280,4.04582124,3466.9,3466.4,0.001]
[1762551342281,2.88475407,3466.5,3466.4,0.001]
[1762551342482,4.31958392,3466.5,3466.4,0.001]
[1762551342644,3.29050775,3466.2,3466.1,0.001]
[1762551342843,3.77181046,3466.2,3466.1,0.001]
[1762551343173,4.26141046,3466.2,3466.1,0.001]
[1762551347357,9.09559263,3466.2,3464.6,5.15062596]
[1762551347556,3.52905277,3464.7,3464.6,5.15062596]
[1762551347959,4.01865277,3464.7,3464.6,5.0]
[1762551348651,2.88655443,3464.4,3464.1,0.15172517]
[1762551349279,0.68,3464.7,3464.1,0.28832517]
[1762551349451,2.88643807,3464.5,3464.1,0.28832517]
[1762551350071,3.56625513,3464.7,3464.1,0.28832517]
[1762551350278,0.68,3464.7,3464.1,0.28832517]
[1762551350474,2.88650622,3464.4,3464.1,0.28832517]
[1762551352161,2.88650622,3464.4,3464.2,0.001]
[1762551352563,0.68,3464.7,3464.3,0.144]
[1762551352959,3.33890271,3464.4,3464.3,0.144]
[1762551353888,3.82850271,3464.4,3464.3,0.144]
[1762551354262,2.88658603,3464.3,3464.2,0.001]
[1762551354460,4.37809003,3464.3,3464.2,0.001]
[1762551354685,3.74457336,3464.2,3463.9,0.001]
[1762551354995,3.33923602,3464.0,3463.9,0.001]
[1762551355195,4.79006357,3464.0,3463.9,0.001]
[1762551355379,5.68516757,3464.0,3463.9,0.001]
[1762551363998,6.94487957,3464.0,3463.9,0.001]
[1762551365099,3.29300688,3463.2,3463.1,0.00100001]
[1762551365419,3.74500688,3463.2,3463.1,0.00100001]
[1762551366017,2.88750288,3463.2,3463.1,0.27420001]
[1762551366211,3.56713843,3463.8,3463.1,0.27420001]
[1762551366389,2.88750288,3463.2,3463.1,0.27420001]
[1762551366787,2.88750288,3463.2,3463.1,0.00100001]
[1762551367096,3.33950288,3463.2,3463.1,0.00100001]
[1762551367609,4.52558728,3463.2,3463.1,0.00100001]
[1762551367932,4.49668457,3463.2,3463.1,0.00100001]
[1762551369229,0.4859,3463.9,3463.1,0.00100001]
[1762551369447,3.33950288,3463.2,3463.1,0.00100001]
[1762551370500,3.82540288,3463.2,3463.1,0.00100001]
[1762551370833,2.88750288,3463.2,3463.1,0.27420001]
[1762551372435,2.88694746,3463.9,3463.1,0.27420001]
[1762551372618,2.88691936,3463.9,3463.8,0.2732]
[1762551373531,0.4859,3464.8,3463.8,0.5464]
[1762551373828,2.88691936,3463.9,3463.8,0.2732]
[1762551374028,2.88666936,3464.2,3463.1,1.26071201]
[1762551374230,2.38717643,3463.6,3463.5,0.2732]
[1762551374532,2.88700271,3463.8,3463.5,0.5464]
[1762551374533,2.8870553,3463.8,3463.5,0.5464]
[1762551374749,2.8870553,3463.8,3463.7,0.2732]
[1762551375453,2.8870553,3463.8,3463.4,0.144]
[1762551375651,2.8870553,3463.8,3463.1,2.88853954]
[1762551375652,2.88750288,3463.2,3463.1,0.00100001]
[1762551376053,0.4859,3463.7,3463.1,0.27420001]
[1762551376229,2.88728252,3463.5,3463.4,0.2732]
[1762551376551,2.88683602,3464.0,3463.4,0.2732]
[1762551376754,2.88725277,3463.5,3463.4,0.2732]
[1762551378575,2.88741951,3463.3,3463.2,4.8795307]
[1762551378925,2.88741951,3463.3,3463.2,5.1527307]
[1762551381551,2.88733669,3463.4,3463.2,5.4259307]
[1762551381751,2.88741951,3463.3,3463.2,5.1527307]
[1762551382172,2.88741951,3463.3,3463.2,5.4259307]
[1762551383272,0.4859,3464.0,3463.2,5.4259307]
[1762551383592,2.8872824,3463.5,3463.2,5.4259307]
[1762551383794,3.56261122,3464.7,3463.3,0.2732]
[1762551384003,2.88691936,3463.9,3463.8,4.8795307]
[1762551384354,2.88691936,3463.9,3463.3,0.2732]
[1762551384355,2.88716941,3463.6,3463.5,4.8795307]
[1762551384766,2.88711964,3463.7,3463.5,5.1527307]
[1762551384964,2.88711964,3463.7,3463.5,4.8795307]
[1762551385176,2.88711964,3463.7,3463.6,0.2732]
[1762551385579,0.4859,3464.1,3463.6,0.4172]
[1762551385780,0.144,3464.2,3464.0,0.2732]
[1762551386104,0.4859,3464.9,3464.1,0.4098]
[1762551386105,2.88646838,3464.5,3464.1,0.4098]
[1762551386303,2.88652804,3464.4,3464.3,4.8795307]
[1762551386605,2.88647034,3464.5,3464.3,5.0235307]
[1762551386758,2.88622996,3464.8,3464.3,5.2967307]
[1762551386960,0.144,3464.9,3464.4,0.2732]
[1762551387200,0.144,3464.9,3464.3,5.2967307]
[1762551387494,2.8864842,3464.5,3464.3,5.2967307]